bitfinex/quotes_SOLUSD_20240809
["timestamp","ask_amount","ask_price","bid_price","bid_amount"]
[1723243447097,48.71148491,154.34,154.23,40.11]
[1723243447307,0.12549,154.32,154.23,40.11]
[1723243447505,0.50196,154.32,154.23,40.11]
[1723243447810,0.50196,154.32,154.19,40.11]
[1723243447811,0.12549,154.3,154.19,40.11]
[1723243447995,0.37647,154.3,154.21,40.11]
[1723243449095,0.37647,154.3,154.22,20.0]
[1723243450310,0.12549,154.29,154.22,20.0]
[1723243450488,0.12549,154.28,154.21,20.0]
[1723243450694,2.12290169,154.28,154.21,20.0]
[1723243451313,0.50196,154.28,154.21,20.0]
[1723243452185,0.50196,154.28,154.19,20.0]
[1723243452394,45.50196,154.28,154.19,20.0]
[1723243452803,0.50196,154.28,154.19,20.0]
[1723243453200,1.6210221,154.27,154.19,20.0]
[1723243453589,1.87201785,154.26,154.19,20.0]
[1723243453790,1.62103785,154.26,154.19,20.0]
[1723243454405,2.12303786,154.28,154.19,20.0]
[1723243454894,0.12549,154.26,154.16,40.11]
[1723243455219,0.25098,154.26,154.16,40.11]
[1723243455435,0.37647,154.26,154.18,40.11]
[1723243455598,1.99761132,154.26,154.18,40.11]
[1723243455800,0.12549,154.25,154.18,40.11]
[1723243456016,0.25098,154.25,154.18,40.11]
[1723243456698,0.25098,154.25,154.16,40.11]
[1723243456898,45.25098,154.26,154.17,20.0]
[1723243457092,0.12549,154.25,154.17,20.0]
[1723243457518,6.63029,154.24,154.17,20.0]
[1723243457820,1.87236624,154.23,154.17,20.0]
[1723243458015,1.87236624,154.23,154.15,20.0]
[1723243458016,0.12549,154.22,154.15,20.0]
[1723243458220,1.74700667,154.22,154.15,20.0]
[1723243458591,0.12549,154.22,154.15,20.0]
[1723243458895,0.25098,154.22,154.13,0.8420987]
[1723243459114,0.25098,154.21,154.13,0.8420987]
[1723243460326,0.12549,154.2,154.13,0.8420987]
[1723243460629,0.25098,154.2,154.13,0.8420987]
[1723243460929,0.12549,154.18,154.13,0.8420987]
[1723243461133,1.74741605,154.18,154.13,0.8420987]
[1723243461519,0.12549,154.18,154.13,0.8420987]
[1723243462202,16.1675,154.25,154.14,40.11]
[1723243462415,24.27206288,154.25,154.14,40.11]
[1723243462711,12.9882,154.24,154.15,20.0]
[1723243462940,6.5048,154.24,154.15,20.0]
[1723243463911,6.5048,154.24,154.16,1.29711551]
[1723243464321,0.37647,154.23,154.16,1.29711551]
[1723243465714,0.37647,154.23,154.15,20.0]
[1723243466909,6.4842,154.22,154.15,20.0]
[1723243467115,0.12549,154.2,154.13,0.8420987]
[1723243467416,1.74726994,154.2,154.13,0.8420987]
[1723243467736,0.37647,154.19,154.13,0.8420987]
[1723243468529,0.12549,154.19,154.13,0.8420987]
[1723243470635,1.74736278,154.19,154.13,0.8420987]
[1723243471242,6.5048,154.17,154.13,0.8420987]
[1723243471539,6.5048,154.21,154.13,0.8420987]
[1723243471738,6.5048,154.21,154.13,2.13930956]
[1723243472044,6.5048,154.21,154.16,40.11]
[1723243472426,6.5048,154.21,154.13,0.8420987]
[1723243472623,6.5048,154.21,154.13,20.8420987]
[1723243474832,6.5048,154.21,154.14,40.11]
[1723243475027,6.5048,154.21,154.15,1.29706662]
[1723243475333,6.5048,154.21,154.16,40.11]
[1723243475531,6.5048,154.21,154.13,76.0685987]
[1723243475835,12.9896,154.21,154.13,20.8420987]
[1723243476031,12.9896,154.21,154.13,0.8420987]
[1723243476248,0.50196,154.2,154.13,0.8420987]
[1723243476552,51.98706,154.2,154.13,0.8420987]
[1723243477251,45.50196,154.2,154.13,0.8420987]
[1723243477629,0.50196,154.2,154.13,0.8420987]
[1723243478552,51.98726,154.2,154.13,0.8420987]
[1723243481554,45.50196,154.2,154.13,0.8420987]
[1723243482468,45.3395,154.21,154.13,0.8420987]
[1723243482753,48.3613,154.19,154.13,0.8420987]
[1723243482969,1.62201105,154.18,154.13,0.8420987]
[1723243483146,8.10848425,154.17,154.13,0.8420987]
[1723243483344,6.0181,154.16,154.13,0.8420987]
[1723243483643,1.62211195,154.15,154.13,0.8420987]
[1723243483836,1.62211195,154.15,154.14,6.4876]
[1723243484152,6.0181,154.16,154.13,0.8420987]
[1723243484347,6.0181,154.16,154.13,7.3300987]
[1723243484533,6.0181,154.16,154.14,6.4874]
[1723243488038,6.0181,154.16,154.13,7.3299987]
[1723243488664,1.62199385,154.15,154.13,0.8420987]
[1723243488840,1.99864361,154.14,154.13,0.8420987]
[1723243489147,2.12413361,154.14,154.13,0.8420987]
[1723243489965,8.61173361,154.14,154.13,0.8420987]
[1723243490266,53.61173361,154.14,154.13,0.8420987]
[1723243490555,53.61201221,154.14,154.13,0.8420987]
[1723243491061,51.98956,154.14,154.13,0.8420987]
[1723243491455,45.50196,154.14,154.13,0.8420987]
[1723243492847,0.37647,154.14,154.13,0.8420987]
[1723243493951,0.25098,154.14,154.13,0.8420987]
[1723243494267,6.0181,154.16,154.13,7.3299987]
[1723243495869,0.37647,154.15,154.13,0.8420987]
[1723243497581,16.0113,154.19,154.16,6.4864]
[1723243497752,6.486,154.18,154.13,7.3296987]
[1723243498067,6.431,154.2,154.13,0.8420987]
[1723243498450,12.9161,154.2,154.15,6.4869]
[1723243499169,20.0,154.19,154.15,6.4869]
[1723243499374,6.431,154.2,154.14,32.35]
[1723243499676,6.4837,154.24,154.15,1.29714169]
[1723243500350,12.914,154.25,154.16,32.35]
[1723243500546,6.431,154.25,154.17,1.29702635]
[1723243500768,16.64167585,154.28,154.18,33.64691617]
[1723243500984,38.781,154.29,154.18,32.35]
[1723243501157,38.781,154.29,154.16,15.9927]
[1723243501158,32.35,154.27,154.16,15.9927]
[1723243501367,6.431,154.29,154.18,32.35]
[1723243501554,40.40202571,154.29,154.18,32.35]
[1723243501882,32.35,154.23,154.13,0.8420987]
[1723243502175,32.35,154.23,154.13,20.8420987]
[1723243502353,38.8339,154.23,154.13,20.8420987]
[1723243502550,32.35,154.25,154.14,32.35]
[1723243502746,6.4825,154.26,154.16,32.35]
[1723243502952,0.37647,154.25,154.16,32.35]
[1723243503148,38.8321,154.27,154.16,32.35]
[1723243503353,6.482,154.28,154.18,32.35]
[1723243503570,38.781,154.29,154.18,32.35]
[1723243504391,38.781,154.29,154.2,32.35]
[1723243504559,6.431,154.29,154.22,32.35]
[1723243504757,6.431,154.29,154.23,1.29656735]
[1723243505267,6.4811,154.3,154.22,32.35]
[1723243506577,6.4813,154.29,154.22,32.35]
[1723243506779,6.4821,154.27,154.19,15.9927]
[1723243506954,0.25098,154.28,154.2,20.0]
[1723243507580,0.12549,154.29,154.21,1.29665723]
[1723243507757,10.15700405,154.34,154.24,32.35]
[1723243507961,32.3852,154.4,154.24,32.35]
[1723243507962,45.2592,154.37,154.28,32.35]
[1723243508155,12.909,154.37,154.28,32.35]
[1723243508567,12.909,154.37,154.29,1.29598732]
[1723243508773,12.909,154.37,154.28,32.35]
[1723243508981,12.909,154.37,154.29,1.29597788]
[1723243509289,6.4785,154.36,154.28,32.35]
[1723243509667,12.909,154.37,154.28,1.295979]
[1723243509857,20.0,154.36,154.27,40.34]
[1723243510059,1.6199325,154.35,154.26,15.9927]
[1723243510274,6.4797,154.33,154.26,15.9927]
[1723243510468,46.771,154.37,154.27,40.59098]
[1723243510469,6.431,154.37,154.27,40.59098]
[1723243510679,50.49284967,154.4,154.29,40.34]
[1723243511071,6.4775,154.38,154.29,40.34]
[1723243512096,6.4779,154.37,154.28,20.0]
[1723243512763,6.4776,154.38,154.28,20.0]
[1723243513190,6.431,154.41,154.31,40.34]
[1723243513486,6.431,154.41,154.33,40.34]
[1723243513683,12.9056,154.45,154.34,37.28816977]
[1723243513882,12.9056,154.45,154.35,40.34]
[1723243514077,6.475,154.44,154.36,1.29526312]
[1723243514274,12.9056,154.45,154.36,1.29526312]
[1723243514474,6.431,154.45,154.36,1.29526312]
[1723243514674,12.9056,154.45,154.36,1.29526312]
[1723243514893,6.431,154.45,154.34,15.9927]
[1723243515094,6.4758,154.42,154.34,15.9927]
[1723243515282,40.34,154.4,154.3,15.5393]
[1723243515663,20.0,154.39,154.3,15.5393]
[1723243516191,0.25098,154.4,154.3,15.5393]
[1723243516392,51.72768,154.4,154.3,16.83499298]
[1723243516572,6.4772,154.39,154.3,15.5393]
[1723243516770,1.61977056,154.38,154.3,15.5393]
[1723243517197,20.0,154.39,154.3,15.5393]
[1723243518397,0.12549,154.41,154.31,40.46549]
[1723243518566,0.12549,154.43,154.33,40.34]
[1723243518771,6.85217,154.43,154.33,40.34]
[1723243519204,6.4758,154.42,154.33,40.34]
[1723243519502,6.475,154.44,154.34,1.29553036]
[1723243519693,6.431,154.45,154.35,40.34]
[1723243519872,12.9056,154.45,154.36,1.29526835]
[1723243520067,6.4754,154.43,154.35,40.34]
[1723243520393,12.9059,154.45,154.35,40.34]
[1723243520695,12.9059,154.45,154.36,1.29534755]
[1723243520893,6.431,154.45,154.35,40.34]
[1723243521195,6.4733,154.48,154.37,40.34]
[1723243521501,6.4725,154.5,154.39,40.34]
[1723243521690,47.99396434,154.54,154.41,40.34]
[1723243521992,46.8668,154.54,154.44,15.5393]
[1723243522178,46.8668,154.54,154.45,1.29467574]
[1723243522179,6.5268,154.54,154.45,1.29467574]
[1723243522384,6.5268,154.54,154.46,1.2946045]
[1723243522771,6.4712,154.53,154.46,1.2946045]
[1723243522972,40.34,154.52,154.44,15.5393]
[1723243523194,40.34,154.5,154.4,15.5393]
[1723243523393,41.95887269,154.5,154.4,15.5393]
[1723243524194,6.4734,154.48,154.4,15.5393]
[1723243524392,0.37647,154.47,154.4,15.5393]
[1723243524594,6.85027,154.47,154.4,15.5393]
[1723243524896,0.37647,154.47,154.4,15.5393]
[1723243525108,0.25098,154.46,154.38,1.29518017]
[1723243525279,0.25098,154.47,154.38,21.29518017]
[1723243525597,0.37647,154.48,154.39,40.34]
[1723243525999,0.12549,154.47,154.38,20.0]
[1723243526179,6.59959,154.46,154.38,20.0]
[1723243526376,40.46549,154.48,154.39,1.29526246]
[1723243526599,20.0,154.49,154.39,40.34]
[1723243526799,0.12549,154.49,154.4,20.0]
[1723243527001,20.25098,154.49,154.4,20.0]
[1723243527203,0.12549,154.48,154.4,20.0]
[1723243527405,40.34,154.52,154.41,41.63480215]
[1723243527605,6.4714,154.53,154.43,40.34]
[1723243527774,6.5268,154.54,154.45,40.34]
[1723243527995,6.5268,154.54,154.46,16.83376142]
[1723243528282,1.61813549,154.53,154.46,15.5393]
[1723243528476,6.4725,154.5,154.46,15.5393]
[1723243528677,40.34,154.5,154.41,15.5393]
[1723243529213,65.50196,154.49,154.41,15.5393]
[1723243529502,71.97486,154.49,154.41,15.5393]
[1723243529909,65.50196,154.49,154.41,15.5393]
[1723243530080,20.0,154.49,154.41,55.8793]
[1723243530286,0.12549,154.51,154.41,55.8793]
[1723243530500,65.50196,154.51,154.41,55.8793]
[1723243530687,71.97396,154.51,154.41,55.8793]
[1723243531599,67.12051424,154.51,154.41,15.5393]
[1723243531908,0.12549,154.45,154.37,21.6065]
[1723243532112,0.12549,154.42,154.37,15.5393]
[1723243532320,8.47165198,154.42,154.37,15.5393]
[1723243532495,40.34,154.44,154.37,15.5393]
[1723243532697,0.12549,154.44,154.37,15.5393]
[1723243532897,45.50196,154.44,154.37,15.5393]
[1723243534621,0.12549,154.42,154.37,15.5393]
[1723243534785,0.37647,154.42,154.37,15.5393]
[1723243534982,45.12549,154.44,154.37,15.5393]
[1723243535218,0.25098,154.43,154.37,15.5393]
[1723243535389,0.37647,154.43,154.37,15.5393]
[1723243537513,0.12549,154.41,154.33,15.7253]
[1723243537693,46.87053569,154.41,154.33,15.7253]
[1723243537899,0.25098,154.4,154.33,15.7253]
[1723243538199,0.25098,154.4,154.34,1.29573]
[1723243538404,0.12549,154.4,154.34,1.29573]
[1723243538612,45.25098,154.41,154.34,1.29573]
[1723243538826,40.34,154.44,154.33,56.0653]
[1723243538827,0.12549,154.43,154.33,56.0653]
[1723243538989,71.97736,154.43,154.33,56.0653]
[1723243539192,65.50196,154.43,154.34,20.0]
[1723243539508,65.50196,154.43,154.35,1.29546031]
[1723243539710,65.50196,154.43,154.36,1.29546031]
[1723243539894,65.50196,154.43,154.34,20.0]
[1723243540533,6.60269,154.39,154.33,15.7253]
[1723243540820,0.12549,154.37,154.28,21.7322]
[1723243541194,6.4788,154.35,154.28,15.7253]
[1723243541390,1.6201674,154.34,154.28,15.7253]
[1723243541592,0.25098,154.36,154.28,15.7253]
[1723243541792,40.46549,154.38,154.28,15.7253]
[1723243542797,0.12549,154.37,154.29,1.29588403]
[1723243543122,0.25098,154.38,154.3,1.29587383]
[1723243543416,45.25098,154.39,154.3,41.63587383]
[1723243543615,0.25098,154.39,154.31,20.0]
[1723243543801,0.25098,154.39,154.32,1.29567344]
[1723243543994,0.25098,154.39,154.33,1.29566716]
[1723243545016,0.25098,154.39,154.32,1.29568]
[1723243545215,0.25098,154.39,154.33,1.29569381]
[1723243545410,6.60299,154.38,154.31,20.0]
[1723243545608,0.25098,154.38,154.29,20.0]
[1723243545813,0.25098,154.38,154.3,1.29583675]
[1723243546026,0.25098,154.38,154.3,41.63583675]
[1723243546223,0.25098,154.38,154.31,20.0]
[1723243547308,45.25098,154.38,154.31,20.0]
[1723243547506,51.72848,154.38,154.31,20.0]
[1723243547709,0.25098,154.37,154.28,15.7253]
[1723243547921,45.12549,154.38,154.28,56.0653]
[1723243548093,0.25098,154.39,154.3,40.34]
[1723243548303,0.25098,154.39,154.31,1.29572192]
[1723243548909,0.37647,154.38,154.28,56.0653]
[1723243549109,6.85437,154.38,154.29,20.0]
[1723243549727,0.12549,154.34,154.24,28.48121078]
[1723243549898,0.12549,154.3,154.24,15.7253]
[1723243550225,0.12549,154.33,154.25,1.29649393]
[1723243550397,0.50196,154.33,154.26,1.29631158]
[1723243550592,0.50196,154.33,154.24,56.0653]
[1723243550826,20.0,154.34,154.24,56.0653]
[1723243551010,20.37647,154.35,154.26,40.34]
[1723243551710,26.85517,154.35,154.26,40.34]
[1723243552020,26.85537,154.35,154.26,40.34]
[1723243552411,6.4793,154.34,154.24,56.0653]
[1723243552609,8.35102269,154.33,154.24,56.0653]
[1723243552812,1.74589718,154.32,154.24,15.7253]
[1723243553022,0.12549,154.32,154.24,15.7253]
[1723243553518,0.25098,154.33,154.24,15.7253]
[1723243553704,6.60549,154.32,154.24,15.7253]
[1723243553906,0.12549,154.3,154.24,15.7253]
[1723243554110,0.12549,154.28,154.2,28.48296984]
[1723243554324,0.12549,154.28,154.2,15.7253]
[1723243554630,51.60719,154.28,154.2,15.7253]
[1723243554818,0.25098,154.27,154.2,15.7253]
[1723243555021,0.12549,154.24,154.16,21.7322]
[1723243555207,0.12549,154.25,154.16,21.7322]
[1723243555516,0.37647,154.25,154.16,21.7322]
[1723243555707,0.12549,154.24,154.16,15.7253]
[1723243556028,0.12549,154.23,154.16,15.7253]
[1723243556215,0.25098,154.23,154.16,15.7253]
[1723243556416,0.37647,154.23,154.16,15.7253]
[1723243556620,6.0996,154.27,154.16,57.3623898]
[1723243556804,0.37647,154.26,154.16,57.3623898]
[1723243557011,0.37647,154.26,154.17,20.0]
[1723243557220,0.37647,154.26,154.18,1.29680005]
[1723243558322,0.37647,154.26,154.17,20.0]
[1723243558718,0.12549,154.24,154.16,15.7253]
[1723243558938,0.37647,154.24,154.16,15.7253]
[1723243559120,45.37647,154.24,154.16,15.7253]
[1723243560223,51.86017,154.24,154.16,15.7253]
[1723243560426,6.60929,154.23,154.16,15.7253]
[1723243560631,1.99802115,154.22,154.13,0.8420987]
[1723243561316,0.37647,154.22,154.13,0.8420987]
[1723243561629,1.99798292,154.22,154.13,0.8420987]
[1723243561830,0.12549,154.19,154.13,0.8420987]
[1723243562043,45.37647,154.19,154.13,0.8420987]
[1723243562326,0.12549,154.2,154.13,0.8420987]
[1723243562531,0.25098,154.2,154.13,0.8420987]
[1723243562833,45.25098,154.2,154.13,0.8420987]
[1723243563012,0.12549,154.19,154.13,0.8420987]
[1723243563219,45.0,154.21,154.14,1.29737124]
[1723243563403,0.12549,154.22,154.15,1.29724456]
[1723243563609,0.37647,154.22,154.13,20.8420987]
[1723243564729,0.12549,154.22,154.13,20.8420987]
[1723243564925,0.50196,154.23,154.13,20.8420987]
[1723243565523,6.98576,154.23,154.13,20.8420987]
[1723243565836,0.12549,154.21,154.13,20.8420987]
[1723243566012,51.98666,154.21,154.13,20.8420987]
[1723243566210,45.50196,154.21,154.13,20.8420987]
[1723243566410,0.37647,154.21,154.13,20.8420987]
[1723243566738,0.12549,154.22,154.13,20.8420987]
[1723243566938,6.98626,154.22,154.13,20.8420987]
[1723243567131,0.50196,154.22,154.13,20.8420987]
[1723243567340,40.34,154.21,154.13,20.8420987]
[1723243567534,0.37647,154.2,154.13,0.8420987]
[1723243567734,0.12549,154.21,154.13,0.8420987]
[1723243568069,20.12549,154.22,154.13,0.8420987]
[1723243568242,0.12549,154.23,154.13,0.8420987]
[1723243568712,20.0,154.23,154.14,40.34]
[1723243568913,20.0,154.25,154.16,40.34]
[1723243569121,20.0,154.25,154.17,1.29691993]
[1723243569337,6.0996,154.27,154.18,41.63690972]
[1723243569547,6.3022,154.31,154.2,56.052]
[1723243569736,6.3022,154.31,154.21,1.29649889]
[1723243570311,6.4808,154.3,154.2,56.052]
[1723243570629,53.1227,154.31,154.21,1.29656129]
[1723243570826,12.7827,154.31,154.21,1.29656129]
[1723243571029,20.0,154.3,154.21,1.29656129]
[1723243571543,20.0,154.3,154.2,57.34849575]
[1723243571845,12.7827,154.31,154.2,57.34849575]
[1723243572049,6.3022,154.31,154.21,1.29649454]
[1723243572229,0.12549,154.3,154.21,1.29649454]
[1723243572547,0.37647,154.3,154.21,1.29649454]
[1723243572724,0.37647,154.3,154.21,21.29649454]
[1723243572924,0.37647,154.3,154.21,20.0]
[1723243573428,6.4814,154.29,154.21,20.0]
[1723243573826,6.85737,154.3,154.21,20.0]
[1723243574150,6.4813,154.29,154.21,20.0]
[1723243574343,0.12549,154.28,154.21,20.0]
[1723243574527,0.12549,154.28,154.2,15.712]
[1723243574528,0.12549,154.27,154.2,15.712]
[1723243574845,0.12549,154.29,154.2,15.712]
[1723243575035,20.25098,154.3,154.2,56.052]
[1723243575231,40.34,154.33,154.22,40.34]
[1723243575447,53.2289,154.35,154.23,7.94867469]
[1723243575745,12.8889,154.35,154.24,60.34]
[1723243576353,12.8889,154.35,154.24,61.63616948]
[1723243576537,6.4101,154.35,154.24,61.63616948]
[1723243576740,20.0,154.34,154.24,60.34]
[1723243576925,6.4101,154.35,154.24,60.34]
[1723243577126,6.4792,154.34,154.25,1.29623883]
[1723243577556,0.37647,154.33,154.25,1.29623883]
[1723243578746,0.37647,154.33,154.24,60.34]
[1723243579556,53.2272,154.39,154.28,40.34]
[1723243579759,53.2272,154.39,154.26,40.34]
[1723243579760,46.7501,154.39,154.26,40.34]
[1723243579955,46.7501,154.39,154.27,20.0]
[1723243580156,6.4784,154.36,154.27,20.0]
[1723243580753,6.4101,154.39,154.28,86.6360198]
[1723243580956,40.34,154.41,154.3,40.34]
[1723243581271,22.2044,154.43,154.28,65.62823257]
[1723243581272,62.5444,154.43,154.32,40.34]
[1723243581561,62.5444,154.43,154.33,1.2955879]
[1723243581562,53.2256,154.43,154.33,1.2955879]
[1723243581730,12.8856,154.43,154.33,1.29547614]
[1723243581930,6.4758,154.42,154.32,40.34]
[1723243582161,46.7501,154.43,154.31,22.0168]
[1723243582365,1.61946984,154.41,154.32,20.0]
[1723243582565,21.61969114,154.42,154.32,20.0]
[1723243583266,6.4779,154.37,154.31,22.0168]
[1723243583474,0.25098,154.36,154.31,15.3645]
[1723243583965,0.12549,154.37,154.31,15.3645]
[1723243584260,20.0,154.38,154.31,15.3645]
[1723243584761,20.12549,154.39,154.31,15.3645]
[1723243584957,0.12549,154.37,154.31,15.3645]
[1723243585150,0.25098,154.37,154.31,15.3645]
[1723243585345,0.12549,154.36,154.31,15.3645]
[1723243586646,6.60419,154.35,154.27,22.0168]
[1723243586850,0.12549,154.33,154.27,15.3645]
[1723243587048,0.25098,154.33,154.27,15.3645]
[1723243589242,0.12549,154.32,154.27,15.3645]
[1723243589451,0.12549,154.31,154.27,15.3645]
[1723243590163,0.12549,154.31,154.23,6.6523]
[1723243590164,48.69186977,154.31,154.23,22.0168]
[1723243590373,0.25098,154.3,154.23,15.3645]
[1723243590860,0.12549,154.29,154.23,15.3645]
[1723243591074,1.74622001,154.29,154.23,15.3645]
[1723243591262,0.12549,154.29,154.23,15.3645]
[1723243592349,0.12549,154.31,154.23,15.3645]
[1723243592756,0.25098,154.31,154.23,15.3645]
[1723243593054,0.12549,154.31,154.23,15.3645]
[1723243593372,1.87147232,154.31,154.23,15.3645]
[1723243593573,0.12549,154.29,154.23,15.3645]
[1723243593759,0.25098,154.3,154.24,1.29653053]
[1723243594345,0.12549,154.3,154.24,1.29653053]
[1723243594547,0.12549,154.3,154.23,15.3645]
[1723243597245,45.25098,154.31,154.24,1.2965301]
[1723243597246,0.25098,154.31,154.24,1.2965301]
[1723243597562,0.25098,154.31,154.23,15.3645]
[1723243597563,0.12549,154.31,154.23,15.3645]
[1723243598469,0.12549,154.32,154.23,15.3645]
[1723243598671,0.12549,154.31,154.23,15.3645]
[1723243600074,6.60599,154.31,154.23,15.3645]
[1723243600249,0.12549,154.29,154.23,15.3645]
[1723243600454,1.746185,154.29,154.23,15.3645]
[1723243602182,0.12549,154.29,154.23,15.3645]
[1723243607366,6.60679,154.29,154.23,15.3645]
[1723243607576,0.12549,154.27,154.23,15.3645]
[1723243607770,1.74642167,154.27,154.23,15.3645]
[1723243608102,1.87197188,154.26,154.19,22.233]
[1723243608266,0.12549,154.26,154.19,22.233]
[1723243608464,0.12549,154.25,154.19,22.233]
[1723243608669,0.37647,154.25,154.19,22.233]
[1723243609091,38.7836,154.24,154.19,15.5807]
[1723243609295,1.99785064,154.23,154.19,15.5807]
[1723243609495,32.3,154.24,154.19,15.5807]
[1723243609802,1.74687064,154.28,154.2,1.29698582]
[1723243609803,32.55098,154.28,154.2,1.29698582]
[1723243609998,0.12549,154.27,154.19,15.5807]
[1723243610177,32.3,154.28,154.2,1.29674132]
[1723243610382,32.3,154.28,154.19,15.5807]
[1723243611220,38.3882,154.3,154.2,52.3]
[1723243611379,38.3882,154.34,154.24,32.3]
[1723243611696,38.7787,154.36,154.26,32.3]
[1723243611879,6.4788,154.35,154.26,32.3]
[1723243612701,0.12549,154.35,154.25,15.5807]
[1723243612890,0.12549,154.31,154.25,15.5807]
[1723243613120,0.12549,154.29,154.25,15.5807]
[1723243613588,0.25098,154.29,154.25,15.5807]
[1723243614196,0.25098,154.29,154.2,20.0]
[1723243614197,0.12549,154.28,154.21,15.5807]
[1723243614380,0.12549,154.27,154.21,15.5807]
[1723243614779,0.25098,154.27,154.21,15.5807]
[1723243615620,6.483,154.25,154.21,15.5807]
[1723243616682,0.37647,154.24,154.17,16.397]
[1723243618400,0.37647,154.24,154.18,1.29699741]
[1723243618785,0.37647,154.24,154.17,16.397]
[1723243620313,0.12549,154.22,154.17,16.397]
[1723243620488,0.25098,154.24,154.18,1.29712656]
[1723243620807,0.25098,154.24,154.17,16.397]
[1723243621309,0.12549,154.25,154.18,1.29701453]
[1723243621491,0.12549,154.25,154.18,33.59701453]
[1723243621699,0.12549,154.26,154.18,33.59701453]
[1723243621893,0.50196,154.26,154.18,33.59701453]
[1723243624491,0.37647,154.26,154.18,32.3]
[1723243626011,38.4868,154.3,154.2,32.3]
[1723243626197,6.1868,154.3,154.21,1.29656072]
[1723243626392,38.7801,154.32,154.22,32.3]
[1723243626589,6.4801,154.32,154.23,1.29648028]
[1723243626795,6.4801,154.32,154.17,16.397]
[1723243626796,6.4822,154.27,154.18,32.3]
[1723243627110,32.3,154.3,154.19,20.0]
[1723243627410,6.4816,154.29,154.2,33.59669187]
[1723243627600,32.3,154.32,154.21,1.2965626]
[1723243627789,0.12549,154.29,154.21,1.2965626]
[1723243627992,20.37647,154.29,154.21,1.2965626]
[1723243628802,0.25098,154.29,154.21,1.2965626]
[1723243629005,6.1778,154.34,154.24,32.3]
[1723243629193,6.1778,154.34,154.25,1.29622159]
[1723243629598,12.6573,154.34,154.25,1.29622159]
[1723243630006,40.98354619,154.38,154.28,32.3]
[1723243630185,32.3,154.4,154.31,16.4947]
[1723243630389,33.91976057,154.4,154.31,16.4947]
[1723243630590,6.4786,154.36,154.31,16.4947]
[1723243630997,32.3,154.38,154.31,16.4947]
[1723243631199,6.4776,154.38,154.31,16.4947]
[1723243632101,6.4779,154.37,154.31,16.4947]
[1723243633517,6.85407,154.38,154.31,16.4947]
[1723243633821,6.72858,154.38,154.32,1.29577373]
[1723243634196,6.4771,154.39,154.31,16.4947]
[1723243634400,26.4778,154.38,154.31,16.4947]
[1723243634814,6.478,154.37,154.31,16.4947]
[1723243636722,20.12549,154.38,154.31,16.4947]
[1723243637016,20.12549,154.38,154.32,1.29581572]
[1723243638217,52.42549,154.38,154.31,16.4947]
[1723243638420,52.42549,154.38,154.23,6.617]
[1723243638421,6.4799,154.33,154.27,15.6316]
[1723243639121,6.48,154.32,154.27,15.6316]
[1723243639420,32.42549,154.3,154.23,22.2486]
[1723243639723,6.4817,154.28,154.23,15.6316]
[1723243640021,32.42549,154.3,154.23,15.6316]
[1723243640022,32.3,154.3,154.23,15.6316]
[1723243640200,0.12549,154.31,154.24,1.29632888]
[1723243640395,20.12549,154.31,154.23,15.6316]
[1723243640725,26.60589,154.31,154.23,15.6316]
[1723243641101,6.4809,154.3,154.24,1.29645202]
[1723243641494,26.60599,154.31,154.24,1.29645202]
[1723243641717,0.12549,154.3,154.24,1.29645202]
[1723243641926,0.25098,154.3,154.24,1.29645202]
[1723243642301,6.73198,154.3,154.24,1.29645202]
[1723243642519,6.73198,154.3,154.23,15.6316]